Cogmind - Beta 13 @@@ ROGUE MODE // 2024.04.11 @ 20:58:29 Player: arcadio rl Result: Destroyed by D-53 Grenadier with Mini Grenade Launcher Performance ------------- Evolutions (1) 500 Regions Visited (4) 800 Robots Destroyed (28) 140 Value Destroyed (634) 634 Prototype IDs (6) 120 Alien Tech Used (0) 0 Bonus (0) 0 TOTAL SCORE: 2194 Bonus ------- None Cogmind --------- Core Integrity 0/400 Matter 205/300 Energy 79/100 System Corruption 0% Temperature Cool (0) Movement Walking (120) Location -9/Mines Parts ------- > --- POWER (1) -------- (None) > --- PROPULSION (3) --- Carbon-fiber Leg Carbon-fiber Leg > --- UTILITY (3) ------ Large Storage Unit Propulsion Shielding > --- WEAPON (2) ------- Mini Grenade Launcher > --- INVENTORY (15) --- Heat Sink Medium Storage Unit Signal Interpreter Propulsion Shielding Sensor Drone Bay (19/20) Ion Cannon Ion Cannon Mini Grenade Launcher Datajack Explosive Trap Peak State ------------ > --- POWER ------------ Light Ion Engine > --- PROPULSION ------- Carbon-fiber Leg Carbon-fiber Leg Carbon-fiber Leg > --- UTILITY ---------- Large Storage Unit Improved Terrain Scanner Sensor Drone Bay > --- WEAPON ----------- Particle Gun Particle Gun > --- INVENTORY -------- Light Ion Engine Carbon-fiber Leg Heat Sink Medium Storage Unit Signal Interpreter Propulsion Shielding Propulsion Shielding Ion Cannon Ion Cannon Mini Grenade Launcher Mini Grenade Launcher Datajack Explosive Trap Explosive Trap Explosive Trap [Rating: 28] Favorites ----------- Power Light Ion Engine Engine Light Ion Engine Propulsion Wheel Leg Carbon-fiber Leg Wheel Wheel Utility Improved Terrain Scanner Device Improved Terrain Scanner Storage Large Storage Unit Protection Propulsion Shielding Weapon Medium Laser Energy Gun Medium Laser Energy Cannon Particle Cannon Ballistic Gun Assault Rifle Launcher Mini Grenade Launcher Special Melee Weapon Datajack Build | -11 -10 -10 -9 -9 ------- Run | Yrd Mat Min Mat Min Slots Evolved 2 | . . . 2 . Power . | . . . . . Propulsion 1 | . . . 1 . Utility 1 | . . . 1 . Weapon . | . . . . . Parts Attached 35 | 8 7 3 11 6 Power 4 | 1 1 . 1 1 Engine 4 | 1 1 . 1 1 Core . | . . . . . Reactor . | . . . . . Propulsion 10 | 2 2 . 5 1 Treads . | . . . . . Leg 4 | . . . 3 1 Wheel 6 | 2 2 . 2 . Hover . | . . . . . Flight . | . . . . . Utility 6 | 2 2 . 1 1 Device 2 | 1 . . 1 . Storage 3 | 1 2 . . . Processor . | . . . . . Hackware . | . . . . . Protection 1 | . . . . 1 Artifact . | . . . . . Weapon 15 | 3 2 3 4 3 Energy Gun 8 | 1 . 3 3 1 Energy Cannon 2 | . 2 . . . Ballistic Gun 2 | 2 . . . . Ballistic Cannon . | . . . . . Launcher 2 | . . . . 2 Special Weapon . | . . . . . Impact Weapon . | . . . . . Slashing Weapon . | . . . . . Piercing Weapon . | . . . . . Special Melee Weapon 1 | . . . 1 . Unidentified Prototypes 1 | . . . 1 . Parts Lost 10 | . 3 . . 7 Power 3 | . 1 . . 2 Propulsion 4 | . 2 . . 2 Utility 1 | . . . . 1 Weapon 2 | . . . . 2 Highest Loss Streak 7 | . 3 . . 7 To Critical Strikes . | . . . . . Average Slot Usage (%) 99 | . 99 100 99 96 Engine 12 | . 14 14 11 10 Leg 10 | . . . 19 32 Wheel 19 | . 28 28 13 . Device 17 | . 14 14 22 21 Storage 12 | . 14 14 11 11 Energy Gun 16 | . . 27 21 18 Energy Cannon 5 | . 20 . . . Ballistic Gun 2 | . 7 . . . Naked Turns . | . . . . . Heaviest Build 44 | 15 34 32 44 44 Greatest Support 45 | 26 26 20 45 45 Greatest Overweight (x) 2 | . 1 1 2 . Average Overweight (x) . | . . 1 . . Largest Inventory Capacity 15 | 8 15 15 15 15 Average Capacity 14 | 7 13 15 15 15 Most Carried 15 | 8 15 15 15 15 Average Carried 13 | 4 12 14 14 14 Final Capacity 15 | 8 15 15 15 15 Final Carried 15 | 8 12 15 15 10 Class Distribution -------------------- 87% | Mutant 12% | Scavenger-Mutant Dominant Class ---------------- Mutant | -10/Materials Mutant | -10/Mines Mutant | -9/Materials Mutant | -9/Mines Resources | -11 -10 -10 -9 -9 ----------- Run | Yrd Mat Min Mat Min Matter Collected 571 | 263 120 68 120 . Remotely . | . . . . . Salvage Created 828 | 85 245 120 307 71 Parts 56 | 5 19 7 16 9 Haulers Intercepted 2 | . 1 . 1 . Recyclers Shooed . | . . . . . Parts Field Recycled . | . . . . . Retrieved Matter . | . . . . . Parts Self-Destructed . | . . . . . Prevented . | . . . . . Kills | -11 -10 -10 -9 -9 ------- Run | Yrd Mat Min Mat Min Combat Hostiles Destroyed 23 | . 4 2 7 10 Guns 14 | . 2 2 7 3 Cannons 2 | . 2 . . . AOE 7 | . . . . 7 Classes Destroyed 9 | 2 4 . 2 1 Tunneler 2 | 1 . 1 . . Hauler 2 | . 1 . 1 . Recycler 1 | 1 . . . . Operator 1 | . 1 . . . Watcher 2 | . 2 . . . Swarmer 7 | . . . 1 6 Grunt 12 | . 4 2 5 1 Sentry 1 | . . . 1 . Assembled 3 | . . . . 3 Best Kill Streak 3 | 1 2 2 3 3 Combat Bots Only 3 | . 2 2 3 3 Max Kills in Single Turn 3 | 1 1 1 2 3 Gunslinging 1 | . . . 1 1 Exploded 3 | . . . . 3 Melee . | . . . . . Uniques/NPCs Destroyed . | . . . . . Combat | -11 -10 -10 -9 -9 -------- Run | Yrd Mat Min Mat Min Hostile Shots Fired 136 | . 39 8 27 62 Missed 39 | . 11 2 10 16 Damage Taken 1747 | . 364 80 170 1133 Core 481 | . 56 13 72 340 Absorbed by Shields . | . . . . . Redirected to Shielding 47 | . . . . 47 Core Remaining (%) 86 | 100 . 72 . . Volleys Fired 77 | 5 22 14 20 16 Largest 2 | 2 2 2 2 2 Hottest 136 | 40 136 136 130 130 Shots Fired 151 | 10 44 28 40 29 Gun 116 | 10 22 22 40 22 Cannon 28 | . 22 6 . . Launcher 7 | . . . . 7 Special . | . . . . . Kinetic 32 | 10 22 . . . Thermal 112 | . 22 28 40 22 Explosive 7 | . . . . 7 Electromagnetic . | . . . . . Robot Hit Streak 15 | 3 10 6 15 4 Robot Miss Streak 5 | 5 5 4 4 5 Penetration Max . | . . . . . Secondary Targets 2 | . . . 1 1 Max Gunslinging Chain 1 | . . . 1 1 Shots Hit Robots 89 | 4 26 20 27 12 Core Hits 47 | 2 10 7 13 15 Critical Kills . | . . . . . Critical Parts Destroyed . | . . . . . Critical Strikes 4 | . . 1 2 1 Burn 4 | . . 1 2 1 Melee Attacks . | . . . . . Impact . | . . . . . Slashing . | . . . . . Piercing . | . . . . . Sneak Attacks . | . . . . . Combat Hostiles . | . . . . . Follow-up Attacks . | . . . . . Damage Inflicted 1930 | 52 461 264 379 774 Guns 923 | 52 132 183 379 177 Cannons 410 | . 329 81 . . Explosions 597 | . . . . 597 Melee . | . . . . . Ramming . | . . . . . Kinetic 184 | 52 132 . . . Thermal 1149 | . 329 264 379 177 Explosive 597 | . . . . 597 Electromagnetic . | . . . . . Impact . | . . . . . Slashing . | . . . . . Piercing . | . . . . . Highest Corruption . | . . . . . Average Corruption . | . . . . . Corruption Purged . | . . . . . Corruption Blocked . | . . . . . Overload Shots . | . . . . . Overflow Damage 6 | . . . . 6 Projectiles . | . . . . . Explosions 6 | . . . . 6 Melee . | . . . . . Knockbacks . | . . . . . Impact . | . . . . . Kinetic . | . . . . . Secondary . | . . . . . Self-Inflicted Damage 68 | . . . . 68 Shots 3 | . . . . 3 Rammed . | . . . . . Targets Rammed . | . . . . . Kicked . | . . . . . Crushed . | . . . . . Highest Temperature 339 | 6 339 245 282 318 Average Temperature 110 | 6 119 97 91 138 Received Heat Transfer 396 | . 204 54 54 84 Effects 4 | . . . 1 3 Shutdowns 1 | . . . . 1 Energy Bleed 1 | . . . 1 . Interference 1 | . . . . 1 Damage (minor) 1 | . . . . 1 Siege Activations . | . . . . . Robots Corrupted . | . . . . . Combat Hostiles . | . . . . . Parts Fried . | . . . . . Impact Corruptions . | . . . . . Robots Melted . | . . . . . Combat Hostiles . | . . . . . Parts Melted 7 | . 1 2 4 . Heat Transferred 2975 | . 592 718 1184 481 Parts Sabotaged . | . . . . . Parts Stolen . | . . . . . Parts Stripped . | . . . . . Power Chain Reactions . | . . . . . Alert | -11 -10 -10 -9 -9 ------- Run | Yrd Mat Min Mat Min Peak Influence 252 | 10 135 85 180 252 Initial 33 | . 6 30 . 33 Average 63 | 3 68 32 67 140 Maximum Alert Level 1 | . . . . 1 Low Security (%) 96 | 100 100 100 100 62 Level 1 3 | . . . . 37 Level 2 . | . . . . . Level 3 . | . . . . . Level 4 . | . . . . . Level 5 . | . . . . . High Security . | . . . . . Max Security . | . . . . . Squads Dispatched 4 | . 2 . 2 . Investigation 2 | . 1 . 1 . Extermination . | . . . . . Reinforcement 2 | . 1 . 1 . Assault . | . . . . . Garrison . | . . . . . Intercept . | . . . . . Searches Triggered . | . . . . . Construction Impeded . | . . . . . Haulers Reinforced . | . . . . . Active Scanning Responses . | . . . . . Cargo Convoy Interrupts . | . . . . . Stealth | -11 -10 -10 -9 -9 --------- Run | Yrd Mat Min Mat Min Distress Signals 3 | . . . 3 . Communications Jammed . | . . . . . Distress Signals . | . . . . . Times Spotted 52 | . 18 2 13 19 Peak Tracking Total 11 | . 5 2 6 11 Tactical Retreats 3 | . 2 . . 1 Traps | -11 -10 -10 -9 -9 ------- Run | Yrd Mat Min Mat Min Traps Triggered 2 | . 1 . 1 . Indirectly . | . . . . . Trap Hack Attempts 13 | . . . 13 . Triggered . | . . . . . Disarmed 1 | . . . 1 . Reprogrammed . | . . . . . Reused 2 | . . . 1 1 Traps Extracted . | . . . . . Installed 3 | . . . 1 2 Triggered 2 | . . . 1 1 Most Traps Carried 4 | . . 4 4 3 Machines | -11 -10 -10 -9 -9 ---------- Run | Yrd Mat Min Mat Min Machines Disabled . | . . . . . Max in Single Turn . | . . . . . Machines Repaired . | . . . . . Machines Dismantled . | . . . . . Machines Sabotaged . | . . . . . Overloaded Fab Kills . | . . . . . Hacking | -11 -10 -10 -9 -9 --------- Run | Yrd Mat Min Mat Min Machines Accessed 7 | . 4 2 1 . Terminals 6 | . 4 1 1 . Fabricators . | . . . . . Repair Stations . | . . . . . Recycling Units . | . . . . . Scanalyzers . | . . . . . Garrison Access . | . . . . . Total Hacks 21 | . 13 5 3 . Successful 12 | . 6 4 2 . Failed 9 | . 7 1 1 . Catastrophic 2 | . 2 . . . Database Lockouts . | . . . . . Manual 5 | . 1 4 . . Terminals 20 | . 13 4 3 . Fabricators . | . . . . . Repair Stations . | . . . . . Recycling Units . | . . . . . Scanalyzers . | . . . . . Garrison Access . | . . . . . Terminal Hacks 11 | . 5 4 2 . Robot Analysis 3 | . 1 2 . . Prototype ID Bank 2 | . 2 . . . Open Door 1 | . . 1 . . Branch Access Points 1 | . . . 1 . Emergency Access Points 1 | . 1 . . . Alert Level 1 | . 1 . . . Locate Traps 1 | . . . 1 . Dispatch Records 1 | . . 1 . . Fabricator Hacks . | . . . . . Repair Station Hacks . | . . . . . Recycling Unit Hacks . | . . . . . Scanalyzer . | . . . . . Garrison Access Hacks . | . . . . . Unauthorized Hacks 1 | . 1 . . . Terminals 1 | . 1 . . . Botnet 1 | . 1 . . . Fabricators . | . . . . . Repair Stations . | . . . . . Recycling Units . | . . . . . Scanalyzers . | . . . . . Garrison Access . | . . . . . Data Cores Recovered 1 | . 1 . . . Used . | . . . . . Hacking Detections 6 | . 4 1 1 . Full Trace Events . | . . . . . Feedback Events . | . . . . . Feedback Blocked . | . . . . . Robot Schematics Acquired . | . . . . . Robots Built . | . . . . . Authchips . | . . . . . Time . | . . . . . Total Robot Build Rating . | . . . . . Part Schematics Acquired . | . . . . . Parts Built . | . . . . . Authchips . | . . . . . Time . | . . . . . Total Part Build Rating . | . . . . . Parts Repaired . | . . . . . Time . | . . . . . Parts Recycled . | . . . . . Recycled Matter . | . . . . . Retrieved Matter . | . . . . . Retrieved Components . | . . . . . Parts Scanalyzed . | . . . . . Part Schematics Acquired . | . . . . . Parts Damaged . | . . . . . Bothacking | -11 -10 -10 -9 -9 ------------ Run | Yrd Mat Min Mat Min Used RIF Installer . | . . . . . Robots Hacked . | . . . . . Non-combat . | . . . . . Combat . | . . . . . Robot Hacks Applied . | . . . . . Relay Couplers Released . | . . . . . Fabnet Peak Effective % . | . . . . . Robots Rewired . | . . . . . Allies Hacked . | . . . . . Hacks Repelled . | . . . . . Allies | -11 -10 -10 -9 -9 -------- Run | Yrd Mat Min Mat Min Total Allies . | . . . . . Largest Group . | . . . . . Highest-Rated Group . | . . . . . Highest-Rated Ally . | . . . . . Total Orders 4 | . . . 3 1 EXPLORE 3 | . . . 2 1 RETURN 1 | . . . 1 . Ally Attacks . | . . . . . Total Damage . | . . . . . Kills . | . . . . . Allies Corrupted 1 | . . . 1 . Allies Melted 1 | . . . . 1 Intel | -11 -10 -10 -9 -9 ------- Run | Yrd Mat Min Mat Min Robot Analysis Total 3 | . 1 2 . . Derelict Logs Recovered 1 | . . 1 . . Drone Launches 6 | . . . 5 1 Drone Recoveries 5 | . . . 4 1 Exploration | -11 -10 -10 -9 -9 ------------- Run | Yrd Mat Min Mat Min Turns Passed 2243 | 93 598 574 760 218 Spaces Moved 1701 | 64 481 538 496 122 Core 3 | 3 . . . . Treads . | . . . . . Legs 405 | . . . 283 122 Wheels 1293 | 61 481 538 213 . Hover . | . . . . . Flight . | . . . . . Fastest Speed 50 | 50 90 95 95 120 Average Speed 103 | 87 101 95 111 120 Slowest Speed 260 | 90 105 95 260 120 Overloaded Moves . | . . . . . Propulsion Burnouts . | . . . . . Robots Hopped . | . . . . . Cave-ins Triggered . | . . . . . Exploration Rate (%) 50 | 5 62 97 53 37 Regions Visited 4 Branch Regions 2 Pre-discovered Areas 1 | . . 1 . . Known Exits Taken 1 | . . . 1 . Unknown Exits Taken 3 | 1 1 1 . . Scrap Searched 1 | . . 1 . . Spaces Dug . | . . . . . Terrain Destroyed 56 | . . . . 56 Melee . | . . . . . Projectile . | . . . . . AOE 56 | . . . . 56 Terrain Rammed . | . . . . . Walls Destroyed . | . . . . . Machines Disabled . | . . . . . Actions | -11 -10 -10 -9 -9 --------- Run | Yrd Mat Min Mat Min Total 2039 | 88 545 574 668 164 Wait 145 | . 28 5 96 16 Move 1697 | 63 480 537 495 122 Hop . | . . . . . Pick Up 37 | 9 5 9 14 . Fast Attach 13 | 8 2 . 3 . Attach 8 | . 3 . 2 3 Detach 3 | 1 2 . . . Swap 14 | . 2 3 6 3 Drop 29 | 2 1 6 18 2 Fire 77 | 5 22 14 20 16 Melee . | . . . . . Ram . | . . . . . Kick . | . . . . . Crush . | . . . . . Escape Stasis . | . . . . . Rewire . | . . . . . Trap 16 | . . . 14 2 Miscellaneous . | . . . . . Route ------- -11/Scrapyard -10/Materials (discovered 2 exits: *Mat / *Min) -10/Mines (discovered 3 exits: *Mat x2 / [*Sub]) -9/Materials (discovered 3 exits: [*Mat] / *Min x2) -9/Mines History --------- Turn | Location | Event 30 | -11/Scrapyard | Discovered new exit (range 15) 94 | -11/Scrapyard | Entered Materials 249 | -10/Materials | Discovered new exit (range 4) 300 | -10/Materials | Build established: Mutant 531 | -10/Materials | Discovered new exit (range 16) 692 | -10/Materials | Entered Mines 704 | -10/Mines | Lost 3 parts (1p2n) 724 | -10/Mines | Learned location of Zion (-7) 792 | -10/Mines | YI-UF0 nonchalantly dropped a Grenade Launcher on the ground 1068 | -10/Mines | Found a hidden stash of uninstalled traps 1120 | -10/Mines | Discovered new exit (range 3) 1160 | -10/Mines | Discovered new exit (range 8) 1185 | -10/Mines | Found the Drone Emporium 1190 | -10/Mines | Found Prototype Device 1222 | -10/Mines | Discovered new exit (range 8) 1266 | -10/Mines | Entered Materials 1266 | -9/Materials | Evolved 2 slots: Propulsion x1, Utility x1 1267 | -9/Materials | Identified Sensor Drone Bay 1425 | -9/Materials | Identified exit to Mines 1762 | -9/Materials | Discovered new exit (range 8) 2026 | -9/Materials | Entered Mines 2194 | -9/Mines | Assembled infested the area 2199 | -9/Mines | Assisted by a Guerilla fighting off Assembled 2224 | -9/Mines | Core integrity fell below 50% 2236 | -9/Mines | Core integrity fell below 20% 2244 | -9/Mines | Destroyed by D-53 Grenadier with Mini Grenade Launcher Last Messages --------------- 02227_ K-01 Serf collects debris. 02227_ Particle Gun destroyed. 02229_ Lgt. Ion Engine destroyed. 02230_ U-05 Engineer lays Concrete. 02231_ The unstable cave ceiling collapses. 02231_ U-05 Engineer lays Concrete. 02232_ U-05 Engineer destroyed. 02233_ Carbon-fiber Leg destroyed. 02235_ K-01 Serf destroyed. 02239_ T-07 Excavator destroyed. 02239_ as-35645 destroyed. 02240_ The unstable cave ceiling collapses. 02240_ as-67223 destroyed. 02242_ The unstable cave ceiling collapses. 02242_ Imp. Terrain Scanner destroyed. 02242_ Destroyed Asb. Hover Unit. 02242_ as-24101 destroyed. 02242_ as-44816 destroyed. 02242_ Destroyed Asb. Hover Unit. 02244_ The unstable cave ceiling collapses. Map ----- +----------------------------------------------------+ | ????????????????????????????????????????????????? | | ?????????????????????#????#??#??????????????????? | | ??????????????????????????????????#?????????????? | | ??????????????????????????#???????????###???????? | | ????????????????#??????????????????#?# ##??????? | | ??????????????? # ????##??????????#?# #??????? | | ??????????????? ????#???????????# #???#???? | | ????????????????? ????###?????#?# ##???????? | | ?????????????????""" #### ####??## #?????????? | | ??????????????#? """ % #### #????##????? | | ???????####???# """ #?#????????? | | ??????## ###??# #???????????? | | ??????# ##????# t #??#?????????? | | ??????# #????## # #????????????? | | ??????# ##????## #???????#????? | | ??????# ##???## ##????????????? | | ??????# ## ##### #????????????? | | ??????# ### ## d # ##????#??????? | | ??????# $#?# # d #???????????? | | ????#?# #?## ##???????????? | | ??????# #??# ##??????????? | | ??????# #??# #### # ?????????? | | ??????#$ #??# #### ????????? | | ??????# #??#######?# ????????? | | ??????# #????????#?# ### =%#???????? | | ??????# #??????????# @ ###??# ????? | | ??????# #??#???????# #?????# ### #???? | | ??#???# #??####????# # ###??????###??? #???? | | ??????# # ## ###?# %* = ##?????#?????????????? | | ??????# # ### % ##???????????????????? | | ?#????# # # # # #?#?????????????????? | | ??????# # # ???????? ??????????? | | ??????# = a #?? ? ????????????? | | ??????# =% ## #?????????????? | | ??????### # == #?????????????? | | ????????# # ##### %[ #?????????????? | | ????????### ###?## * ###??????????????? | | ?????????# #????# # ##????????????????? | | ???????#?# ##???# ########?????????????????? | | ??????##### ##??# #???#????????????????????? | | ?????????### #### #???#????????????????????? | | ??????#????# ### %#?##??#??????????????????? | | ?#????#????## *%% ####?????????????????????? | | ??????#?????### = = ##??#????#?????????????? | | ?????????###### #??#??????????????????? | | ???#????## #??#?#????????????????? | | ????????# ### ##???????#?????????????? | | ????????# ##?# ##??????????#???????????? | | ????????## ## ##??# #???????????????????????? | | ????????####### ##### ####????????????????????? | +----------------------------------------------------+ Best States ------------- Heat Dissipation 28 Energy Generation 10 Energy Capacity 250 Matter Stores 300 Matter Capacity 300 Sight Range 16 Terrain Scan Range 16 Terrain Scan Density 10 Propulsion Shielding 33 Evasion (%) 55 Item Schematics ----------------- None Robot Schematics ------------------ None Fabricated ------------ Nothing Alien Tech Used ----------------- None Achievements -------------- None Challenges ------------ None Game ------ Seed ArchitectPotentialDerivative Manual? 0 Play Time 00:43:10 Cumulative 108.1 hours Start 2024.04.11 @ 12:45:58 End 2024.04.11 @ 20:58:29 Sessions 2 Manual Loads 0 Difficulty Rogue Special Mode None Game No. 85 Rogue 85 Adventurer 0 Explorer 0 Win Type - Total 0 Types 0/0/0/0/0/0/0/0/0 Lore% 51 Gallery% 51 Achievement% 40 Wizard Run 0 Options --------- Layout 1 ASCII 0 Keyboard 1 Movement Numpad Keybinds 0 Fullscreen 1 Font 24/Smallcaps Map View 50x35 Zoom Use 0% Tactical HUD 1 Map Filters NONE Filters NONE Steam 1 RUN: a6ea789f-7e66-4fdb-b3f6-6a1926bca5ca